[Event "Late-Titled-Tuesday-Blitz-January-30-2024"]
[Site "Chess.com"]
[Date "2024.01.30"]
[Round "6"]
[White "LittleChessFan"]
[Black "GiorgianBarbosa"]
[Result "1-0"]
[WhiteElo "2308"]
[BlackElo "2459"]
[TimeControl "180+1"]
[EndTime "15:08:48 PST"]
[Termination "LittleChessFan won by resignation"]

1. d4 {[%clk 0:03:00.9]} 1... Nf6 {[%clk 0:02:58.5]} 2. c4 {[%clk 0:03:00.9]}
2... e6 {[%clk 0:02:59.4]} 3. g3 {[%clk 0:03:00.9]} 3... d5 {[%clk 0:03:00.3]}
4. Bg2 {[%clk 0:03:01.2]} 4... Be7 {[%clk 0:03:01.2]} 5. Nf3 {[%clk 0:03:01.5]}
5... O-O {[%clk 0:03:01.8]} 6. O-O {[%clk 0:03:01.9]} 6... a5 {[%clk 0:03:02.3]}
7. Nbd2 {[%clk 0:02:59.4]} 7... c6 {[%clk 0:03:02.6]} 8. Qc2 {[%clk 0:02:59.6]}
8... b6 {[%clk 0:03:01.1]} 9. Rd1 {[%clk 0:02:59.5]} 9... Bb7 {[%clk 0:02:41.8]}
10. e4 {[%clk 0:02:58.4]} 10... Nbd7 {[%clk 0:02:36.7]} 11. e5 {[%clk
0:02:55.4]} 11... Ne8 {[%clk 0:02:36.4]} 12. cxd5 {[%clk 0:02:41.6]} 12... cxd5
{[%clk 0:02:35.7]} 13. Nf1 {[%clk 0:02:41.5]} 13... Rc8 {[%clk 0:02:31.3]} 14.
Qb3 {[%clk 0:02:38.7]} 14... Ba6 {[%clk 0:02:24]} 15. Ne3 {[%clk 0:02:38.3]}
15... Nc7 {[%clk 0:02:18]} 16. Bd2 {[%clk 0:02:33.2]} 16... h6 {[%clk
0:02:01.3]} 17. Rdc1 {[%clk 0:02:28]} 17... Na8 {[%clk 0:01:59.4]} 18. Rxc8
{[%clk 0:02:27.1]} 18... Qxc8 {[%clk 0:02:00.3]} 19. Rc1 {[%clk 0:02:27.2]}
19... Qb7 {[%clk 0:02:00.6]} 20. Bf1 {[%clk 0:02:23.4]} 20... Bxf1 {[%clk
0:01:57.4]} 21. Nxf1 {[%clk 0:02:09.8]} 21... Rc8 {[%clk 0:01:57.6]} 22. Rxc8+
{[%clk 0:02:03.4]} 22... Qxc8 {[%clk 0:01:58.5]} 23. Qc3 {[%clk 0:02:02.7]}
23... Qxc3 {[%clk 0:01:41.9]} 24. Bxc3 {[%clk 0:02:03.6]} 24... Kf8 {[%clk
0:01:40.2]} 25. Ne3 {[%clk 0:02:02.6]} 25... Ke8 {[%clk 0:01:39.6]} 26. Kf1
{[%clk 0:02:02.8]} 26... Nb8 {[%clk 0:01:33.2]} 27. Ke2 {[%clk 0:02:00.9]} 27...
Bd8 {[%clk 0:01:32.7]} 28. Kd3 {[%clk 0:01:58.6]} 28... Kd7 {[%clk 0:01:32.6]}
29. Nd2 {[%clk 0:01:52.5]} 29... Kc6 {[%clk 0:01:25.8]} 30. b3 {[%clk
0:01:48.7]} 30... b5 {[%clk 0:01:24.6]} 31. f4 {[%clk 0:01:45]} 31... b4 {[%clk
0:01:22.2]} 32. Bb2 {[%clk 0:01:44.9]} 32... h5 {[%clk 0:01:20.2]} 33. h3 {[%clk
0:01:44.3]} 33... g6 {[%clk 0:01:19.9]} 34. g4 {[%clk 0:01:44.5]} 34... hxg4
{[%clk 0:01:20.8]} 35. hxg4 {[%clk 0:01:45.4]} 35... Bh4 {[%clk 0:01:16.1]} 36.
Nf3 {[%clk 0:01:40.9]} 36... Bg3 {[%clk 0:01:12.3]} 37. f5 {[%clk 0:01:28.7]}
37... gxf5 {[%clk 0:01:11.7]} 38. gxf5 {[%clk 0:01:29.6]} 38... Bf4 {[%clk
0:01:11.4]} 39. Ng2 {[%clk 0:01:25.3]} 39... Bh6 {[%clk 0:01:05.1]} 40. f6
{[%clk 0:01:23.8]} 40... Kd7 {[%clk 0:00:50.5]} 41. Ne3 {[%clk 0:01:13.7]} 41...
Bxe3 {[%clk 0:00:46.7]} 42. Kxe3 {[%clk 0:01:14.6]} 42... Ke8 {[%clk 0:00:45.6]}
43. a3 {[%clk 0:01:14.6]} 43... Nc6 {[%clk 0:00:38.3]} 44. Ne1 {[%clk
0:01:12.8]} 44... Nc7 {[%clk 0:00:30.9]} 45. Nc2 {[%clk 0:01:05.9]} 45... Kf8
{[%clk 0:00:24.8]} 46. a4 {[%clk 0:01:02.8]} 46... Kg8 {[%clk 0:00:23.6]} 47.
Kf4 {[%clk 0:01:00.1]} 47... Kh7 {[%clk 0:00:23.3]} 48. Ne1 {[%clk 0:00:55.5]}
48... Kg6 {[%clk 0:00:20.5]} 49. Kg4 {[%clk 0:00:55.8]} 49... Na6 {[%clk
0:00:12.8]} 50. Ng2 {[%clk 0:00:56.1]} 50... Ncb8 {[%clk 0:00:09.6]} 51. Nf4+
{[%clk 0:00:57]} 51... Kh7 {[%clk 0:00:08.3]} 52. Kh5 {[%clk 0:00:56.3]} 52...
Nd7 {[%clk 0:00:08.4]} 53. Nh3 {[%clk 0:00:56.4]} 53... Nc7 {[%clk 0:00:06.5]}
54. Ng5+ {[%clk 0:00:56.8]} 54... Kg8 {[%clk 0:00:07.1]} 55. Kh6 {[%clk
0:00:57.4]} 55... Ne8 {[%clk 0:00:06.8]} 56. Bc1 {[%clk 0:00:57.8]} 56... Nb8
{[%clk 0:00:07]} 57. Be3 {[%clk 0:00:58.1]} 57... Nc6 {[%clk 0:00:07.9]} 58. Kh5
{[%clk 0:00:57.8]} 58... Nc7 {[%clk 0:00:08.3]} 59. Nf3 {[%clk 0:00:57.9]} 59...
Na8 {[%clk 0:00:08.4]} 60. Ne1 {[%clk 0:00:54.5]} 60... Nc7 {[%clk 0:00:06.6]}
61. Nd3 {[%clk 0:00:54.3]} 61... Na6 {[%clk 0:00:07.5]} 62. Kg4 {[%clk
0:00:53.1]} 62... Kh7 {[%clk 0:00:07.6]} 63. Kh5 {[%clk 0:00:53.5]} 63... Ncb8
{[%clk 0:00:05.7]} 64. Nc5 {[%clk 0:00:52.6]} 64... Nxc5 {[%clk 0:00:04.9]} 65.
dxc5 {[%clk 0:00:53.5]} 65... Nc6 {[%clk 0:00:05.4]} 66. Bf4 {[%clk 0:00:51.8]}
66... d4 {[%clk 0:00:05.1]} 67. Kg4 {[%clk 0:00:51.7]} 67... Kg6 {[%clk
0:00:04.4]} 68. Bg3 {[%clk 0:00:48.1]} 68... d3 {[%clk 0:00:04]} 69. Kf3 {[%clk
0:00:48.5]} 69... Kf5 {[%clk 0:00:01]} 70. Ke3 {[%clk 0:00:48.2]} 70... Kg4
{[%clk 0:00:01.9]} 71. Bh2 {[%clk 0:00:45.7]} 71... Kf5 {[%clk 0:00:02.4]} 72.
Kxd3 {[%clk 0:00:45.2]} 72... Nxe5+ {[%clk 0:00:03]} 73. Bxe5 {[%clk 0:00:34.6]}
73... Kxe5 {[%clk 0:00:03.9]} 74. Kc4 {[%clk 0:00:35.5]} 74... Kxf6 {[%clk
0:00:02.8]} 75. Kb5 {[%clk 0:00:35.2]} 75... Ke7 {[%clk 0:00:03.1]} 76. Kb6
{[%clk 0:00:34.8]} 76... e5 {[%clk 0:00:03.1]} 77. c6 {[%clk 0:00:34.7]} 77...
e4 {[%clk 0:00:04]} 78. c7 {[%clk 0:00:34.9]} 78... e3 {[%clk 0:00:04.9]} 79.
c8=Q {[%clk 0:00:35]} 79... e2 {[%clk 0:00:04.9]} 80. Qc1 {[%clk 0:00:34.6]}
80... f5 {[%clk 0:00:05.8]} 81. Qe3+ {[%clk 0:00:34.7]} 1-0

[Event "Late-Titled-Tuesday-Blitz-January-30-2024"]
[Site "Chess.com"]
[Date "2024.01.30"]
[Round "6"]
[White "rasmussvane"]
[Black "pavet"]
[Result "1-0"]
[WhiteElo "2958"]
[BlackElo "2776"]
[TimeControl "180+1"]
[EndTime "15:08:55 PST"]
[Termination "rasmussvane won on time"]

1. Nf3 {[%clk 0:02:55.1]} 1... Nf6 {[%clk 0:02:56.7]} 2. g3 {[%clk 0:02:52.9]}
2... d5 {[%clk 0:02:56.4]} 3. Bg2 {[%clk 0:02:52.4]} 3... e6 {[%clk 0:02:54.3]}
4. O-O {[%clk 0:02:48.9]} 4... Bd6 {[%clk 0:02:54.6]} 5. c4 {[%clk 0:02:44.2]}
5... O-O {[%clk 0:02:53.4]} 6. d4 {[%clk 0:02:35.4]} 6... h6 {[%clk 0:02:53]} 7.
Nc3 {[%clk 0:02:33.1]} 7... Nc6 {[%clk 0:02:50.5]} 8. b3 {[%clk 0:02:23.2]} 8...
dxc4 {[%clk 0:02:49.6]} 9. bxc4 {[%clk 0:02:24.1]} 9... e5 {[%clk 0:02:50.3]}
10. e3 {[%clk 0:01:35.4]} 10... exd4 {[%clk 0:02:40.5]} 11. exd4 {[%clk
0:01:36.3]} 11... Re8 {[%clk 0:02:40.8]} 12. h3 {[%clk 0:01:28.1]} 12... Bf5
{[%clk 0:02:39.6]} 13. Be3 {[%clk 0:01:28.2]} 13... Ne4 {[%clk 0:02:39.3]} 14.
Nxe4 {[%clk 0:01:21.2]} 14... Bxe4 {[%clk 0:02:39.6]} 15. Re1 {[%clk 0:01:20.4]}
15... Qf6 {[%clk 0:02:31.7]} 16. Nh2 {[%clk 0:01:08.8]} 16... Bxg2 {[%clk
0:02:31.3]} 17. Kxg2 {[%clk 0:01:09.7]} 17... Rad8 {[%clk 0:02:28]} 18. Qf3
{[%clk 0:01:09.9]} 18... Qg6 {[%clk 0:02:17.4]} 19. Rab1 {[%clk 0:01:04]} 19...
Na5 {[%clk 0:02:02]} 20. c5 {[%clk 0:01:00.3]} 20... Bf8 {[%clk 0:02:00]} 21.
Rec1 {[%clk 0:00:53.9]} 21... b6 {[%clk 0:01:56.9]} 22. Ng4 {[%clk 0:00:52.9]}
22... Qe6 {[%clk 0:01:49.4]} 23. a4 {[%clk 0:00:43.3]} 23... Nc4 {[%clk
0:01:13.1]} 24. d5 {[%clk 0:00:41]} 24... Nxe3+ {[%clk 0:01:12.8]} 25. Nxe3
{[%clk 0:00:41.1]} 25... Qe5 {[%clk 0:01:13.2]} 26. d6 {[%clk 0:00:30.3]} 26...
bxc5 {[%clk 0:01:07.3]} 27. dxc7 {[%clk 0:00:29.6]} 27... Qxc7 {[%clk
0:01:06.9]} 28. Rb7 {[%clk 0:00:28.7]} 28... Qe5 {[%clk 0:00:57.2]} 29. Qxf7+
{[%clk 0:00:28.7]} 29... Kh8 {[%clk 0:00:57.1]} 30. Rxa7 {[%clk 0:00:27.2]}
30... Qb8 {[%clk 0:00:47.6]} 31. Qb7 {[%clk 0:00:22.9]} 31... Qe5 {[%clk
0:00:40]} 32. Qf3 {[%clk 0:00:21.9]} 32... Be7 {[%clk 0:00:24.4]} 33. Rc4 {[%clk
0:00:21]} 33... Rf8 {[%clk 0:00:20.6]} 34. Qe4 {[%clk 0:00:17.2]} 34... Qxe4+
{[%clk 0:00:15]} 35. Rxe4 {[%clk 0:00:18.1]} 35... Bf6 {[%clk 0:00:15.8]} 36.
Nf5 {[%clk 0:00:10.1]} 36... Rd2 {[%clk 0:00:14.7]} 37. g4 {[%clk 0:00:10.2]}
37... Rb8 {[%clk 0:00:14.6]} 38. Rf4 {[%clk 0:00:06.8]} 38... Rbb2 {[%clk
0:00:10.9]} 39. Nxh6 {[%clk 0:00:06.8]} 39... Bd4 {[%clk 0:00:06.2]} 40. Nf7+
{[%clk 0:00:04.7]} 40... Kh7 {[%clk 0:00:06.8]} 41. Ng5+ {[%clk 0:00:04.9]}
41... Kg6 {[%clk 0:00:07.4]} 42. h4 {[%clk 0:00:05.6]} 42... Rxf2+ {[%clk
0:00:06.7]} 43. Rxf2 {[%clk 0:00:06.2]} 43... Rxf2+ {[%clk 0:00:07.5]} 44. Kg3
{[%clk 0:00:06.9]} 44... Ra2 {[%clk 0:00:08.4]} 45. Ra6+ {[%clk 0:00:07.2]}
45... Bf6 {[%clk 0:00:07.4]} 46. Nf3 {[%clk 0:00:07.6]} 46... c4 {[%clk
0:00:07.6]} 47. g5 {[%clk 0:00:08]} 47... c3 {[%clk 0:00:08]} 48. gxf6 {[%clk
0:00:08.5]} 48... gxf6 {[%clk 0:00:08.9]} 49. Rc6 {[%clk 0:00:08.7]} 49... c2
{[%clk 0:00:09.4]} 50. Ne1 {[%clk 0:00:07]} 50... Ra3+ {[%clk 0:00:07.9]} 51.
Nf3 {[%clk 0:00:04.2]} 51... Ra2 {[%clk 0:00:07.1]} 52. a5 {[%clk 0:00:04.8]}
52... Kf5 {[%clk 0:00:07.1]} 53. Rxc2 {[%clk 0:00:04.3]} 53... Rxa5 {[%clk
0:00:06.2]} 54. Rc4 {[%clk 0:00:04.9]} 54... Kg6 {[%clk 0:00:06.8]} 55. Rg4+
{[%clk 0:00:05.1]} 55... Kh6 {[%clk 0:00:06.8]} 56. Rf4 {[%clk 0:00:05.7]} 56...
Kg6 {[%clk 0:00:06.8]} 57. Kg4 {[%clk 0:00:05.7]} 57... Ra1 {[%clk 0:00:06.6]}
58. h5+ {[%clk 0:00:05.5]} 58... Kg7 {[%clk 0:00:07.2]} 59. Nh4 {[%clk
0:00:05.3]} 59... Rg1+ {[%clk 0:00:07.3]} 60. Kh3 {[%clk 0:00:05.8]} 60... Ra1
{[%clk 0:00:07.7]} 61. Nf5+ {[%clk 0:00:05.9]} 61... Kh7 {[%clk 0:00:07.7]} 62.
Rf3 {[%clk 0:00:06.2]} 62... Rh1+ {[%clk 0:00:07.8]} 63. Kg4 {[%clk 0:00:06.5]}
63... Rg1+ {[%clk 0:00:08.5]} 64. Rg3 {[%clk 0:00:07.2]} 64... Ra1 {[%clk
0:00:08.3]} 65. Rd3 {[%clk 0:00:07.3]} 65... Ra4+ {[%clk 0:00:08.8]} 66. Rd4
{[%clk 0:00:07.3]} 66... Ra7 {[%clk 0:00:09.4]} 67. Re4 {[%clk 0:00:07.8]} 67...
Ra1 {[%clk 0:00:08.2]} 68. Re7+ {[%clk 0:00:08]} 68... Kh8 {[%clk 0:00:08.9]}
69. Nh4 {[%clk 0:00:07.3]} 69... Rg1+ {[%clk 0:00:07.8]} 70. Kf4 {[%clk
0:00:07.6]} 70... Rg5 {[%clk 0:00:07.7]} 71. h6 {[%clk 0:00:05.7]} 71... Rg1
{[%clk 0:00:06.5]} 72. Kf5 {[%clk 0:00:05.2]} 72... Kg8 {[%clk 0:00:01.8]} 73.
Kxf6 {[%clk 0:00:05]} 73... Rf1+ {[%clk 0:00:02]} 74. Nf5 {[%clk 0:00:05.4]}
74... Rg1 {[%clk 0:00:02.6]} 75. Rg7+ {[%clk 0:00:04.5]} 1-0

[Event "Late-Titled-Tuesday-Blitz-January-30-2024"]
[Site "Chess.com"]
[Date "2024.01.30"]
[Round "6"]
[White "crescentmoon2411"]
[Black "Mikhail_Bryakin"]
[Result "1-0"]
[WhiteElo "3011"]
[BlackElo "2828"]
[TimeControl "180+1"]
[EndTime "15:09:15 PST"]
[Termination "crescentmoon2411 won by checkmate"]

1. d4 {[%clk 0:03:00.9]} 1... Nf6 {[%clk 0:02:58.5]} 2. c4 {[%clk 0:03:00.2]}
2... c5 {[%clk 0:02:59.1]} 3. d5 {[%clk 0:03:00.4]} 3... d6 {[%clk 0:02:59.5]}
4. Nc3 {[%clk 0:03:00.6]} 4... g6 {[%clk 0:03:00.4]} 5. e4 {[%clk 0:03:00.5]}
5... Bg7 {[%clk 0:03:01.3]} 6. Bd3 {[%clk 0:03:00.2]} 6... O-O {[%clk
0:03:02.2]} 7. h3 {[%clk 0:03:00.6]} 7... Na6 {[%clk 0:03:00.9]} 8. Nf3 {[%clk
0:03:00.5]} 8... e6 {[%clk 0:03:01.4]} 9. O-O {[%clk 0:03:00.4]} 9... Nc7 {[%clk
0:03:01.7]} 10. Be3 {[%clk 0:02:45.6]} 10... e5 {[%clk 0:03:00.8]} 11. g4 {[%clk
0:02:36.7]} 11... h6 {[%clk 0:02:59.2]} 12. Nh2 {[%clk 0:02:23.8]} 12... Nh7
{[%clk 0:02:04.1]} 13. Qd2 {[%clk 0:02:22.1]} 13... g5 {[%clk 0:02:00.6]} 14.
Rfb1 {[%clk 0:02:21]} 14... b6 {[%clk 0:01:53.3]} 15. Nf1 {[%clk 0:02:02.3]}
15... Re8 {[%clk 0:01:36]} 16. Ng3 {[%clk 0:02:01.1]} 16... Nf8 {[%clk
0:01:34.1]} 17. Nf5 {[%clk 0:01:58.2]} 17... Ng6 {[%clk 0:01:32.7]} 18. a3
{[%clk 0:01:56.6]} 18... Nf4 {[%clk 0:01:30.8]} 19. Bf1 {[%clk 0:01:49.1]} 19...
Bf8 {[%clk 0:01:08.1]} 20. b4 {[%clk 0:01:43]} 20... Na6 {[%clk 0:01:08.4]} 21.
f3 {[%clk 0:01:42]} 21... Bd7 {[%clk 0:01:05.8]} 22. b5 {[%clk 0:01:30.1]} 22...
Nc7 {[%clk 0:01:03.2]} 23. a4 {[%clk 0:01:30.7]} 23... Qf6 {[%clk 0:00:57.3]}
24. a5 {[%clk 0:01:28.4]} 24... Reb8 {[%clk 0:00:56.4]} 25. Ra2 {[%clk
0:01:24.3]} 25... Qd8 {[%clk 0:00:54.7]} 26. Rba1 {[%clk 0:01:20.6]} 26... f6
{[%clk 0:00:44.8]} 27. h4 {[%clk 0:01:06.3]} 27... a6 {[%clk 0:00:38.8]} 28.
axb6 {[%clk 0:01:00.3]} 28... Rxb6 {[%clk 0:00:38.9]} 29. h5 {[%clk 0:00:28]}
29... Kh7 {[%clk 0:00:31.6]} 30. Qb2 {[%clk 0:00:18.4]} 30... Qc8 {[%clk
0:00:31.1]} 31. Ra5 {[%clk 0:00:17.1]} 31... Rbb8 {[%clk 0:00:30]} 32. R1a3
{[%clk 0:00:15.3]} 32... axb5 {[%clk 0:00:24.7]} 33. cxb5 {[%clk 0:00:15.9]}
33... Rxa5 {[%clk 0:00:23.4]} 34. Rxa5 {[%clk 0:00:16.8]} 34... Na8 {[%clk
0:00:23.9]} 35. Qa2 {[%clk 0:00:15.8]} 35... Nb6 {[%clk 0:00:23.9]} 36. Ra7
{[%clk 0:00:15.6]} 36... Rb7 {[%clk 0:00:24.4]} 37. Qa6 {[%clk 0:00:14.9]} 37...
Rxa7 {[%clk 0:00:15.5]} 38. Qxa7 {[%clk 0:00:15.8]} 38... Qd8 {[%clk 0:00:15.5]}
39. Kf2 {[%clk 0:00:15.3]} 39... Kg8 {[%clk 0:00:14.5]} 40. Ke1 {[%clk
0:00:15.3]} 40... Bxf5 {[%clk 0:00:13.3]} 41. exf5 {[%clk 0:00:11.4]} 41... Kh8
{[%clk 0:00:13.3]} 42. Bxf4 {[%clk 0:00:11.1]} 42... gxf4 {[%clk 0:00:13]} 43.
Kd1 {[%clk 0:00:10.2]} 43... c4 {[%clk 0:00:13]} 44. Kc2 {[%clk 0:00:09.5]}
44... Bg7 {[%clk 0:00:11.4]} 45. Qb7 {[%clk 0:00:09]} 45... Bf8 {[%clk
0:00:10.8]} 46. Ne4 {[%clk 0:00:07.3]} 46... Bg7 {[%clk 0:00:09.9]} 47. Qc6
{[%clk 0:00:05.7]} 47... Qb8 {[%clk 0:00:06.5]} 48. Bxc4 {[%clk 0:00:05.4]}
48... Qa7 {[%clk 0:00:06.9]} 49. Bb3 {[%clk 0:00:05.6]} 49... Qa5 {[%clk
0:00:05.6]} 50. Nxd6 {[%clk 0:00:05.2]} 50... Na4 {[%clk 0:00:02.8]} 51. Bxa4
{[%clk 0:00:04.9]} 51... Qxa4+ {[%clk 0:00:03]} 52. Kc3 {[%clk 0:00:05.3]} 52...
Qa3+ {[%clk 0:00:02.9]} 53. Kc4 {[%clk 0:00:04.5]} 53... Qc1+ {[%clk 0:00:03]}
54. Kb4 {[%clk 0:00:04.7]} 54... Qe1+ {[%clk 0:00:03.3]} 55. Kc5 {[%clk
0:00:03.1]} 55... Qe3+ {[%clk 0:00:02.4]} 56. Kb4 {[%clk 0:00:03.5]} 56... Qe1+
{[%clk 0:00:01.9]} 57. Qc3 {[%clk 0:00:03.8]} 57... Qb1+ {[%clk 0:00:02.6]} 58.
Kc5 {[%clk 0:00:04]} 58... Qa2 {[%clk 0:00:02.1]} 59. Kc6 {[%clk 0:00:03.7]}
59... Qa8+ {[%clk 0:00:02.2]} 60. Kb6 {[%clk 0:00:02.6]} 60... Qb8+ {[%clk
0:00:02.5]} 61. Nb7 {[%clk 0:00:02.9]} 61... e4 {[%clk 0:00:02.6]} 62. fxe4
{[%clk 0:00:02.5]} 62... Bf8 {[%clk 0:00:03.4]} 63. Qxf6+ {[%clk 0:00:02.1]}
63... Kg8 {[%clk 0:00:03.6]} 64. Qg6+ {[%clk 0:00:01.7]} 64... Kh8 {[%clk
0:00:04.4]} 65. Qf6+ {[%clk 0:00:01.5]} 65... Kg8 {[%clk 0:00:04.6]} 66. Qe6+
{[%clk 0:00:02.3]} 66... Kh8 {[%clk 0:00:04.8]} 67. d6 {[%clk 0:00:03]} 67... f3
{[%clk 0:00:04.6]} 68. Qe5+ {[%clk 0:00:02.5]} 68... Bg7 {[%clk 0:00:04.5]} 69.
f6 {[%clk 0:00:02.4]} 69... Bf8 {[%clk 0:00:04.9]} 70. f7+ {[%clk 0:00:02.7]}
70... Bg7 {[%clk 0:00:04.6]} 71. Qe8+ {[%clk 0:00:03.1]} 71... Kh7 {[%clk
0:00:04.2]} 72. Qxb8 {[%clk 0:00:03.2]} 72... Bf8 {[%clk 0:00:04.5]} 73. Qxf8
{[%clk 0:00:03.7]} 73... f2 {[%clk 0:00:04.9]} 74. Qg8# {[%clk 0:00:04.3]} 1-0

[Event "Late-Titled-Tuesday-Blitz-January-30-2024"]
[Site "Chess.com"]
[Date "2024.01.30"]
[Round "6"]
[White "OparinGrigoriy"]
[Black "Adar_07"]
[Result "1/2-1/2"]
[WhiteElo "2970"]
[BlackElo "2679"]
[TimeControl "180+1"]
[EndTime "15:09:17 PST"]
[Termination "Game drawn by repetition"]

1. Nf3 {[%clk 0:03:00.9]} 1... Nf6 {[%clk 0:02:59.7]} 2. c4 {[%clk 0:03:01.8]}
2... c5 {[%clk 0:02:58.8]} 3. Nc3 {[%clk 0:03:02.7]} 3... Nc6 {[%clk 0:02:59.4]}
4. d4 {[%clk 0:03:03]} 4... cxd4 {[%clk 0:02:59.5]} 5. Nxd4 {[%clk 0:03:03.9]}
5... g6 {[%clk 0:02:59.7]} 6. g3 {[%clk 0:03:04.4]} 6... Bg7 {[%clk 0:02:59.8]}
7. Bg2 {[%clk 0:03:05]} 7... O-O {[%clk 0:03:00.5]} 8. O-O {[%clk 0:03:05.5]}
8... Nxd4 {[%clk 0:03:00.2]} 9. Qxd4 {[%clk 0:03:05.3]} 9... d6 {[%clk
0:03:00.9]} 10. Qd3 {[%clk 0:03:06]} 10... Nd7 {[%clk 0:02:58.8]} 11. Qd2 {[%clk
0:03:00.8]} 11... Nb6 {[%clk 0:02:58.2]} 12. b3 {[%clk 0:03:00.4]} 12... a5
{[%clk 0:02:58]} 13. Bb2 {[%clk 0:02:59.6]} 13... a4 {[%clk 0:02:58.3]} 14. Nb5
{[%clk 0:02:55]} 14... axb3 {[%clk 0:02:54.9]} 15. axb3 {[%clk 0:02:54.7]} 15...
Rxa1 {[%clk 0:02:51]} 16. Rxa1 {[%clk 0:02:55.6]} 16... Nd7 {[%clk 0:02:47]} 17.
Bxg7 {[%clk 0:02:54.1]} 17... Kxg7 {[%clk 0:02:47.9]} 18. Qd4+ {[%clk
0:02:54.3]} 18... f6 {[%clk 0:02:45.9]} 19. Ra7 {[%clk 0:02:54]} 19... Nc5
{[%clk 0:02:44.7]} 20. b4 {[%clk 0:02:52.7]} 20... Ne6 {[%clk 0:02:42.5]} 21.
Qe3 {[%clk 0:02:53.1]} 21... Qd7 {[%clk 0:02:34.2]} 22. Qb6 {[%clk 0:02:38.7]}
22... Qd8 {[%clk 0:02:34.5]} 23. Qe3 {[%clk 0:02:30.4]} 23... Qd7 {[%clk
0:02:34.3]} 24. Bd5 {[%clk 0:02:26]} 24... Nc7 {[%clk 0:02:28.7]} 25. Nxc7
{[%clk 0:02:11.9]} 25... Qxc7 {[%clk 0:02:29.6]} 26. b5 {[%clk 0:02:07.6]} 26...
e6 {[%clk 0:02:22]} 27. b6 {[%clk 0:02:07]} 27... Qd7 {[%clk 0:02:13.6]} 28. Bf3
{[%clk 0:01:56.4]} 28... d5 {[%clk 0:02:09.6]} 29. cxd5 {[%clk 0:01:55.2]} 29...
exd5 {[%clk 0:02:10.5]} 30. Qc5 {[%clk 0:01:52]} 30... Rd8 {[%clk 0:02:04.7]}
31. Ra8 {[%clk 0:01:43.4]} 31... d4 {[%clk 0:01:57]} 32. h4 {[%clk 0:01:40.8]}
32... d3 {[%clk 0:01:56.2]} 33. exd3 {[%clk 0:01:40.3]} 33... Qxd3 {[%clk
0:01:54.3]} 34. Bg2 {[%clk 0:01:11.9]} 34... Qd1+ {[%clk 0:01:35.9]} 35. Kh2
{[%clk 0:01:11.9]} 35... Qd7 {[%clk 0:01:36.8]} 36. Qc7 {[%clk 0:01:04.4]} 36...
Qxc7 {[%clk 0:01:28.8]} 37. bxc7 {[%clk 0:01:05.3]} 37... Re8 {[%clk 0:01:27.9]}
38. Rb8 {[%clk 0:01:05.4]} 38... Kf7 {[%clk 0:01:23.5]} 39. Bxb7 {[%clk
0:00:24]} 39... Bxb7 {[%clk 0:01:23.4]} 40. Rxb7 {[%clk 0:00:24.9]} 40... Rc8
{[%clk 0:01:24]} 41. Kg2 {[%clk 0:00:25.2]} 41... Ke7 {[%clk 0:01:24.1]} 42. Kf3
{[%clk 0:00:25.4]} 42... Kd7 {[%clk 0:01:07]} 43. Rb6 {[%clk 0:00:24.9]} 43...
Rf8 {[%clk 0:01:05]} 44. Ra6 {[%clk 0:00:22.2]} 44... Kxc7 {[%clk 0:00:57.9]}
45. Ra7+ {[%clk 0:00:22.7]} 45... Kd6 {[%clk 0:00:58.5]} 46. Rxh7 {[%clk
0:00:23.5]} 46... Rg8 {[%clk 0:00:56.8]} 47. Kf4 {[%clk 0:00:19.6]} 47... Ke6
{[%clk 0:00:57.2]} 48. Ra7 {[%clk 0:00:16]} 48... Rc8 {[%clk 0:00:54.9]} 49. Kg4
{[%clk 0:00:09.9]} 49... Rc4+ {[%clk 0:00:54.6]} 50. f4 {[%clk 0:00:10.4]} 50...
Rc3 {[%clk 0:00:51.4]} 51. h5 {[%clk 0:00:04.1]} 51... gxh5+ {[%clk 0:00:50.9]}
52. Kh4 {[%clk 0:00:04.7]} 52... Kf5 {[%clk 0:00:49.7]} 53. Ra8 {[%clk
0:00:03.7]} 53... Rc1 {[%clk 0:00:48.5]} 54. Ra5+ {[%clk 0:00:03.9]} 54... Kg6
{[%clk 0:00:48.9]} 55. Kh3 {[%clk 0:00:04.4]} 55... Rc3 {[%clk 0:00:44.2]} 56.
Ra8 {[%clk 0:00:04]} 56... Rc1 {[%clk 0:00:42.9]} 57. Rg8+ {[%clk 0:00:04.1]}
57... Kh7 {[%clk 0:00:42.8]} 58. Rf8 {[%clk 0:00:04.4]} 58... Kg7 {[%clk
0:00:43.1]} 59. Rd8 {[%clk 0:00:05.3]} 59... Rh1+ {[%clk 0:00:38]} 60. Kg2
{[%clk 0:00:05.6]} 60... Rc1 {[%clk 0:00:38.3]} 61. Rd5 {[%clk 0:00:05.4]} 61...
Kg6 {[%clk 0:00:38.5]} 62. Rd4 {[%clk 0:00:06.1]} 62... Rc3 {[%clk 0:00:38.2]}
63. Kh3 {[%clk 0:00:06.3]} 63... Rc1 {[%clk 0:00:37.5]} 64. Rd8 {[%clk
0:00:06.1]} 64... Re1 {[%clk 0:00:34.1]} 65. Rc8 {[%clk 0:00:04.9]} 65... Rd1
{[%clk 0:00:33.6]} 66. Ra8 {[%clk 0:00:05.2]} 66... Rc1 {[%clk 0:00:33.8]} 67.
Ra5 {[%clk 0:00:05.2]} 67... Rh1+ {[%clk 0:00:33.9]} 68. Kg2 {[%clk 0:00:05.3]}
68... Rc1 {[%clk 0:00:34.6]} 69. Ra3 {[%clk 0:00:05.3]} 69... Rc2+ {[%clk
0:00:33.9]} 70. Kf3 {[%clk 0:00:05.8]} 70... Rc1 {[%clk 0:00:34.4]} 71. Ke4
{[%clk 0:00:05.5]} 71... Re1+ {[%clk 0:00:34.3]} 72. Re3 {[%clk 0:00:05.1]}
72... Rd1 {[%clk 0:00:31.8]} 73. Kf3 {[%clk 0:00:04.3]} 73... Kf5 {[%clk
0:00:31.4]} 74. Rc3 {[%clk 0:00:04.3]} 74... Rd5 {[%clk 0:00:31.1]} 75. Rb3
{[%clk 0:00:04.3]} 75... Rc5 {[%clk 0:00:31.3]} 76. Ra3 {[%clk 0:00:04.5]} 76...
Rb5 {[%clk 0:00:31.5]} 77. Ra8 {[%clk 0:00:04.7]} 77... Rb3+ {[%clk 0:00:31.7]}
78. Kg2 {[%clk 0:00:05.2]} 78... Rb2+ {[%clk 0:00:21.5]} 79. Kh3 {[%clk
0:00:05.4]} 79... Rb1 {[%clk 0:00:22.2]} 80. Rg8 {[%clk 0:00:05.6]} 80... h4
{[%clk 0:00:17.4]} 81. gxh4 {[%clk 0:00:05.2]} 81... Rh1+ {[%clk 0:00:16.9]} 82.
Kg2 {[%clk 0:00:04.9]} 82... Rxh4 {[%clk 0:00:17.4]} 83. Kg3 {[%clk 0:00:04.1]}
83... Rxf4 {[%clk 0:00:17.5]} 84. Ra8 {[%clk 0:00:05]} 84... Rg4+ {[%clk
0:00:17.5]} 85. Kf3 {[%clk 0:00:05.7]} 85... Rc4 {[%clk 0:00:18.1]} 86. Ra5+
{[%clk 0:00:06]} 86... Kg6 {[%clk 0:00:18.7]} 87. Ra6 {[%clk 0:00:06.7]} 87...
Kg5 {[%clk 0:00:18.9]} 88. Ra8 {[%clk 0:00:07.4]} 88... Rc3+ {[%clk 0:00:18.2]}
89. Kf2 {[%clk 0:00:08]} 89... f5 {[%clk 0:00:17.4]} 90. Ra4 {[%clk 0:00:08.7]}
90... f4 {[%clk 0:00:15.7]} 91. Ra8 {[%clk 0:00:08.2]} 91... Kg4 {[%clk
0:00:14.9]} 92. Rg8+ {[%clk 0:00:08.4]} 92... Kf5 {[%clk 0:00:15.6]} 93. Rf8+
{[%clk 0:00:09.3]} 93... Kg4 {[%clk 0:00:15.7]} 94. Rg8+ {[%clk 0:00:09.9]}
94... Kf5 {[%clk 0:00:16.2]} 95. Rf8+ {[%clk 0:00:10.8]} 95... Ke4 {[%clk
0:00:16.8]} 96. Re8+ {[%clk 0:00:11.3]} 96... Kd5 {[%clk 0:00:16.9]} 97. Rf8
{[%clk 0:00:12.2]} 97... Ke5 {[%clk 0:00:16.1]} 98. Re8+ {[%clk 0:00:12.7]}
98... Kf5 {[%clk 0:00:15.9]} 99. Rf8+ {[%clk 0:00:13.6]} 1/2-1/2